Workbook

Sheet 1.1 - Agente de Limpeza
A1: PLANILHA DE CUSTOS E FORMAÇÃO DE PREÇOS
B2: 5ª SUPERINTENDÊNCIA REGIONAL
A5: ANEXO IV DO TERMO DE REFERÊNCIA
A8: N° Processo Administrativo
A9: Licitação N° | C9: PE Nº.
A10: Data: ______/______/_______ | C10: Hora: _____:_____ horas
A13: DISCRIMINAÇÃO DOS SERVIÇOS (dados referentes à contratação)
A14: A | B14: Data de apresentação da proposta (dia/mês/ano)
A15: B | B15: Município/UF | E15: Penedo/AL
A16: C | B16: Ano Acordo, Convenção ou Sentença Normativa em Dissídio Coletivo | E16: 2021
A17: D | B17: Nº de meses de execução contratual | E17: 12 meses
A20: IDENTIFICAÇÃO DO SERVIÇO
A21: Tipo de serviço | C21: Unidade de Medida | D21: Quantidade total a contratar (em função da unidade de medida)
A23: Limpeza e conservação das áreas internas, | C23: Posto | D23: 2
A24: externas e esquadrias
A29: ANEXO VII-D DA INSTRUÇÃO NORMATIVA Nº 5/2017 - SEGES/MPDG
A31: Descrição:
A32: Prestação dos serviços de Limpeza, Sanitização, Conservação, Manutenção predial, de equipamentos e instalações elétricas, Copa, Jardinagem e Recepção nas instalações da CODEVASF – 5ª SR, com carga horária de 44 (quarenta e quatro) horas semanais, de segunda à sexta.
A33: Dados complementares para composição dos custos referente à mão de obra
A34: 1 | B34: Prestação de serviços no prédio da CODEVASF/5ª SR | E34: Penedo/AL
A35: 2 | B35: Salário normativo da categoria profissional | E35: 1130
A36: 3 | B36: Categoria profissional vinculada à execução contratual (SINDLIMP/AL) | E36: Agente de Limpeza
A37: 4 | B37: Data-base da categoria (dia/mês/ano) | E37: 2021-01-01
A38: * Utilizada como base para o reajuste da categoria profissional previsto nos Acordos, Convenções ou Sentenças Normativas em Dissídios Coletivos.
A40: MÓDULO 1: COMPOSIÇÃO DA REMUNERAÇÃO
A41: 1 | B41: Composição da Remuneração | E41: Valor (R$)
A42: A | B42: Salário Base | E42: =E35 -> 1130
A43: B | B43: Adicional de Periculosidade | E43: 0
A44: C | B44: Adicional de Insalubridade | E44: 0
A45: D | B45: Adicional Noturno | E45: 0
A46: E | B46: Hora noturna adicional | E46: 0
A47: F | B47: Adicional de hora extra | E47: 0
A48: G | B48: Intervalo intrajornada | E48: 0
A49: H | B49: Outros (especificar) | E49: 0
A50: TOTAL DA REMUNERAÇÃO | E50: =E35 -> 1130
A52: MÓDULO 2: BENEFÍCIOS MENSAIS E DIÁRIOS
A53: 2 | B53: Benefícios Mensais e Diários | E53: Valor (R$)
A54: A | B54: Vale Transporte (Deduzido 6% parte empregado) R$ 2,5,00 (valor transporte)*2*22 (dias trab.) = R$ 110,00 - 6% do sal. Base | E54: =(2.5*2*22)-(0.06*E42) -> 42.2
A55: B | B55: Auxílio alimentação (Vales, cesta básica, etc.) - CCT 2021 | E55: =440-(0.2*440) -> 352
A56: C | B56: Assistência médica e familiar - CCT 2021 | E56: 10
A57: D | B57: Auxílio creche | E57: 0
A58: E | B58: Seguro de vida, invalidez e funeral | E58: 10
A59: F | B59: Outros (especificar) | E59: 0
A60: TOTAL DE BENEFÍCIOS MENSAIS E DIÁRIOS | E60: =SUM(E54:E59) -> 414.2
A61: Nota: o valor informado deverá ser o custo real do insumo (descontado o valor eventualmente pago pelo empregado).
A63: MÓDULO 3: INSUMOS DIVERSOS
A64: 3 | B64: Insumos Diversos | E64: Valor (R$)
A65: A | B65: Uniformes | E65: =Insumos!C10/24 -> 100
A66: B | B66: Materiais | E66: 0
A67: C | B67: Equipamentos | E67: =SUM(Insumos!D10:G10)/24 -> 7.916666667
A68: D | B68: Outros (especificar) | E68: -
A69: TOTAL DE INSUMOS DIVERSOS | E69: =SUM(E65:E68) -> 107.9166667
A70: Nota: Valores mensais por empregado.
A72: MÓDULO 4: ENCARGOS SOCIAIS E TRABALHISTAS
A73: GRUPO "A"
A74: 4.1 | B74: GRUPO "A" | D74: % | E74: Valor (R$)
A75: A | B75: INSS (Art. 22 inciso I da Lei 8.212/91) | D75: 0.2 | E75: =E50*D75 -> 226
A76: B | B76: FGTS (Art. 15 da Lei 8030/90 art. 7° inciso III CF/88) | D76: 0.08 | E76: =E50*D76 -> 90.4
A77: C | B77: Riscos Ambientais do Trabalho - RAT x FAP - (Decreto 3.048/1999, Anexo V e Decreto 6.957/2009) | D77: 0.03 | E77: =E50*D77 -> 33.9
A78: D | B78: Salário Educação (Art. 3° inciso I Decreto 87.043/) | D78: 0.025 | E78: =E50*D78 -> 28.25
A79: E | B79: SESC/SESI (Art. 3° da Lei 8036/90) | D79: 0.015 | E79: =E50*D79 -> 16.95
A80: F | B80: SENAC/SENAI (Decreto 2.318/86) | D80: 0.01 | E80: =E50*D80 -> 11.3
A81: G | B81: SEBRAE (Art. 8° Lei 8029/90 e 8154 de 28/12/90) | D81: 0.006 | E81: =E50*D81 -> 6.78
A82: H | B82: INCRA (Lei 7787 de 30/06/890e DL 1146/70) | D82: 0.002 | E82: =E50*D82 -> 2.26
A83: TOTAL | D83: =SUM(D75:D82) -> 0.368 | E83: 329.36
A84: Notas: - Os percentuais dos encargos previdenciários e FGTS, a serem preenchidos na coluna %, são aqueles estabelecidos pela legislação vigente.
A85: - Percentuais incidentes sobre a remuneração.
A87: GRUPO "B"
A88: B | B88: GRUPO "B" | D88: % | E88: Valor (R$)
A89: A | B89: 13º salário (1/12) | D89: 0.0833 | E89: =E50*D89 -> 94.129
A90: B | B90: Férias (incluindo 1/3) (1/12 + (1+1/3) CCT 2013 | D90: 0.1203 | E90: =E50*D90 -> 135.939
A91: C | B91: Aviso prévio trabalhado | D91: 0.0037 | E91: =D91*E50 -> 4.181
A92: D | B92: Auxílio-enfermidade | D92: 0.0185 | E92: =E50*D92 -> 20.905
A93: E | B93: Auxílio acidente de trabalho | D93: 0.013 | E93: =E50*D93 -> 14.69
A94: F | B94: Faltas legais | D94: 0.0299 | E94: =E50*D94 -> 33.787
A95: G | B95: Licença paternidade | D95: 0.0133 | E95: =E50*D95 -> 15.029
A96: TOTAL | D96: =SUM(D89:D95) -> 0.282 | E96: =SUM(E89:E95) -> 318.66
A98: GRUPO "C"
A99: C | B99: GRUPO "C" | D99: % | E99: Valor (R$)
A100: A | B100: Aviso Prévio Indenizado | D100: 0.0165 | E100: =E50*D100 -> 18.645
A101: B | B101: Indenização adicional | D101: 0.038 | E101: =E50*D101 -> 42.94
A102: C | B102: FGTS nas rescisões sem justa causa | D102: 0.04 | E102: =E50*D102 -> 45.2
A103: TOTAL | D103: =SUM(D100:D102) -> 0.0945 | E103: =SUM(E100:E102) -> 106.785
A105: GRUPO "D"
A106: D | B106: GRUPO "D" | D106: % | E106: Valor (R$)
A107: A | B107: Incidência do grupo "A" sobre o grupo "B" | D107: 0.1038 | E107: =E50*D107 -> 117.294
A108: TOTAL | D108: 0.1038 | E108: =SUM(E107) -> 117.294
A110: QUADRO-RESUMO - Módulo 4 - Encargos Sociais e Trabalhistas
A111: 4 | B111: Módulo 4 - Encargos sociais e trabalhistas | D111: % | E111: Valor (R$)
A112: 4.1 | B112: GRUPO "A" | D112: 0.368 | E112: =E83 -> 329.36
A113: 4.2 | B113: GRUPO "B" | D113: 0.282 | E113: =E96 -> 318.66
A114: 4.3 | B114: GRUPO "C" | D114: 0.0945 | E114: =E103 -> 106.785
A115: 4.4 | B115: GRUPO "D" | D115: 0.1038 | E115: =E108 -> 117.294
A116: 4.6 | B116: Outros (especificar) | D116: - | E116: 0
A117: TOTAL | D117: 0.8483 | E117: =SUM(E112:E116) -> 872.099
A119: MÓDULO 5: BENEFÍCIO E CUSTOS INDIRETOS (BDI)
A120: 5 | B120: Benefício e Custos Indiretos - BDI | D120: % | E120: Valor (R$)
A121: A | B121: Custo Indireto | D121: 0.06 | E121: =E137*D121 -> 151.45294
A122: D | B122: Tributos Federais (COFINS/PIS) | D122: 0.0365 | E122: =(E137+E121+E124)*3.65/91.35 -> 116.9953928
A123: E | B123: Tributos Municipais (ISSQN ou ISS) | D123: 0.05 | E123: =(E137+E121+E124)*5/91.35 -> 160.2676614
A124: F | B124: Lucro | D124: 0.1 | E124: =E137*D124 -> 252.4215667 | F124: 0.0865 | G124: Erro:508
A125: TOTAL | D125: =SUM(D121:D124) -> 0.2465 | E125: =SUM(E121:E124) -> 681.1375608
A126: Notas: - Custos Indiretos, Tributos e Lucro por empregado.
A127: - O valor referente a tributos é obtido aplicando-se o percentual sobre o valor do faturamento.
A129: ANEXO III - B - PORTARIA Nº 07 DE 09/03/2011 - SLTI/MPOG
A130: Quadro Resumo do Custo por Empregado
A132: Mão de obra vinculada à execução contratual (valor por empregado) | E132: Valor (R$)
A133: A | B133: Módulo 1 – Composição da Remuneração | E133: =E50 -> 1130
A134: B | B134: Módulo 2 – Benefícios Mensais e Diários | E134: =E60 -> 414.2
A135: C | B135: Módulo 3 – Insumos Diversos (uniformes e outros) | E135: =E69 -> 107.9166667
A136: D | B136: Módulo 4 – Encargos Sociais e Trabalhistas | E136: =E117 -> 872.099
A137: Subtotal (A + B + C + D) | E137: =SUM(E133:E136) -> 2524.215667
A138: E | B138: Módulo 5 – Benefício e Custos Indiretos | E138: =E125 -> 681.1375608
A139: VALOR MENSAL POR AGENTE DE LIMPEZA | E139: =SUM(E137:E138) -> 3205.353228

Sheet 1.2 - Copeira
A1: PLANILHA DE CUSTOS E FORMAÇÃO DE PREÇOS
B2: 5ª SUPERINTENDÊNCIA REGIONAL
A5: ANEXO IV DO TERMO DE REFERÊNCIA
A8: N° Processo Administrativo
A9: Licitação N° | C9: PE Nº.
A10: Data: ______/______/_______ | C10: Hora: _____:_____ horas
A13: DISCRIMINAÇÃO DOS SERVIÇOS (dados referentes à contratação)
A14: A | B14: Data de apresentação da proposta (dia/mês/ano)
A15: B | B15: Município/UF | E15: Penedo/AL
A16: C | B16: Ano Acordo, Convenção ou Sentença Normativa em Dissídio Coletivo | E16: 2021
A17: D | B17: Nº de meses de execução contratual | E17: 12 meses
A20: IDENTIFICAÇÃO DO SERVIÇO
A21: Tipo de serviço | C21: Unidade de Medida | D21: Quantidade total a contratar (em função da unidade de medida)
A23: Serviços de copeiragem em geral | C23: Posto | D23: 1
A29: ANEXO VII-D DA INSTRUÇÃO NORMATIVA Nº 5/2017 - SEGES/MPDG
A31: Descrição:
A32: Prestação dos serviços de Limpeza, Sanitização, Conservação, Manutenção predial, de equipamentos e instalações elétricas, Copa, Jardinagem e Recepção nas instalações da CODEVASF – 5ª SR, com carga horária de 44 (quarenta e quatro) horas semanais, de segunda à sexta.
A33: Dados complementares para composição dos custos referente à mão de obra
A34: 1 | B34: Prestação de serviços no prédio da CODEVASF/5ª SR | E34: Penedo/AL
A35: 2 | B35: Salário normativo da categoria profissional | E35: 1130
A36: 3 | B36: Categoria profissional vinculada à execução contratual (SINDLIMP/AL) | E36: Copeira
A37: 4 | B37: Data-base da categoria (dia/mês/ano) | E37: 2021-01-01
A38: * Utilizada como base para o reajuste da categoria profissional previsto nos Acordos, Convenções ou Sentenças Normativas em Dissídios Coletivos.
A40: MÓDULO 1: COMPOSIÇÃO DA REMUNERAÇÃO
A41: 1 | B41: Composição da Remuneração | E41: Valor (R$)
A42: A | B42: Salário Base | E42: =E35 -> 1130
A43: B | B43: Adicional de Periculosidade | E43: 0
A44: C | B44: Adicional de Insalubridade | E44: 0
A45: D | B45: Adicional Noturno | E45: 0
A46: E | B46: Hora noturna adicional | E46: 0
A47: F | B47: Adicional de hora extra | E47: 0
A48: G | B48: Intervalo intrajornada | E48: 0
A49: H | B49: Outros (especificar) | E49: 0
A50: TOTAL DA REMUNERAÇÃO | E50: =E35 -> 1130
A52: MÓDULO 2: BENEFÍCIOS MENSAIS E DIÁRIOS
A53: 2 | B53: Benefícios Mensais e Diários | E53: Valor (R$)
A54: A | B54: Vale Transporte (Deduzido 6% parte empregado) R$ 2,5,00 (valor transporte)*2*22 (dias trab.) = R$ 110,00 - 6% do sal. Base | E54: =(2.5*2*22)-(0.06*E42) -> 42.2
A55: B | B55: Auxílio alimentação (Vales, cesta básica, etc.) - CCT 2021 | E55: =440-(0.2*440) -> 352
A56: C | B56: Assistência médica e familiar - CCT 2021 | E56: 10
A57: D | B57: Auxílio creche | E57: 0
A58: E | B58: Seguro de vida, invalidez e funeral | E58: 10
A59: F | B59: Outros (especificar) | E59: 0
A60: TOTAL DE BENEFÍCIOS MENSAIS E DIÁRIOS | E60: =SUM(E54:E59) -> 414.2
A61: Nota: o valor informado deverá ser o custo real do insumo (descontado o valor eventualmente pago pelo empregado).
A63: MÓDULO 3: INSUMOS DIVERSOS
A64: 3 | B64: Insumos Diversos | E64: Valor (R$)
A65: A | B65: Uniformes | E65: =Insumos!C14/12 -> 100
A66: B | B66: Materiais | E66: 0
A67: C | B67: Equipamentos | E67: =SUM(Insumos!D14:G14)/12 -> 5.833333333
A68: D | B68: Outros (especificar) | E68: -
A69: TOTAL DE INSUMOS DIVERSOS | E69: =SUM(E65:E68) -> 105.8333333
A70: Nota: Valores mensais por empregado.
A72: MÓDULO 4: ENCARGOS SOCIAIS E TRABALHISTAS
A73: GRUPO "A"
A74: 4.1 | B74: GRUPO "A" | D74: % | E74: Valor (R$)
A75: A | B75: INSS (Art. 22 inciso I da Lei 8.212/91) | D75: 0.2 | E75: =E50*D75 -> 226
A76: B | B76: FGTS (Art. 15 da Lei 8030/90 art. 7° inciso III CF/88) | D76: 0.08 | E76: =E50*D76 -> 90.4
A77: C | B77: Riscos Ambientais do Trabalho - RAT x FAP - (Decreto 3.048/1999, Anexo V e Decreto 6.957/2009) | D77: 0.03 | E77: =E50*D77 -> 33.9
A78: D | B78: Salário Educação (Art. 3° inciso I Decreto 87.043/) | D78: 0.025 | E78: =E50*D78 -> 28.25
A79: E | B79: SESC/SESI (Art. 3° da Lei 8036/90) | D79: 0.015 | E79: =E50*D79 -> 16.95
A80: F | B80: SENAC/SENAI (Decreto 2.318/86) | D80: 0.01 | E80: =E50*D80 -> 11.3
A81: G | B81: SEBRAE (Art. 8° Lei 8029/90 e 8154 de 28/12/90) | D81: 0.006 | E81: =E50*D81 -> 6.78
A82: H | B82: INCRA (Lei 7787 de 30/06/890e DL 1146/70) | D82: 0.002 | E82: =E50*D82 -> 2.26
A83: TOTAL | D83: =SUM(D75:D82) -> 0.368 | E83: 329.36
A84: Notas: - Os percentuais dos encargos previdenciários e FGTS, a serem preenchidos na coluna %, são aqueles estabelecidos pela legislação vigente.
A85: - Percentuais incidentes sobre a remuneração.
A87: GRUPO "B"
A88: B | B88: GRUPO "B" | D88: % | E88: Valor (R$)
A89: A | B89: 13º salário (1/12) | D89: 0.0833 | E89: =E50*D89 -> 94.129
A90: B | B90: Férias (incluindo 1/3) (1/12 + (1+1/3) CCT 2013 | D90: 0.1203 | E90: =E50*D90 -> 135.939
A91: C | B91: Aviso prévio trabalhado | D91: 0.0037 | E91: =D91*E50 -> 4.181
A92: D | B92: Auxílio-enfermidade | D92: 0.0185 | E92: =E50*D92 -> 20.905
A93: E | B93: Auxílio acidente de trabalho | D93: 0.013 | E93: =E50*D93 -> 14.69
A94: F | B94: Faltas legais | D94: 0.0299 | E94: =E50*D94 -> 33.787
A95: G | B95: Licença paternidade | D95: 0.0133 | E95: =E50*D95 -> 15.029
A96: TOTAL | D96: =SUM(D89:D95) -> 0.282 | E96: =SUM(E89:E95) -> 318.66
A98: GRUPO "C"
A99: C | B99: GRUPO "C" | D99: % | E99: Valor (R$)
A100: A | B100: Aviso Prévio Indenizado | D100: 0.0165 | E100: =E50*D100 -> 18.645
A101: B | B101: Indenização adicional | D101: 0.038 | E101: =E50*D101 -> 42.94
A102: C | B102: FGTS nas rescisões sem justa causa | D102: 0.04 | E102: =E50*D102 -> 45.2
A103: TOTAL | D103: =SUM(D100:D102) -> 0.0945 | E103: =SUM(E100:E102) -> 106.785
A105: GRUPO "D"
A106: D | B106: GRUPO "D" | D106: % | E106: Valor (R$)
A107: A | B107: Incidência do grupo "A" sobre o grupo "B" | D107: 0.1038 | E107: =E50*D107 -> 117.294
A108: TOTAL | D108: 0.1038 | E108: =SUM(E107) -> 117.294
A110: QUADRO-RESUMO - Módulo 4 - Encargos Sociais e Trabalhistas
A111: 4 | B111: Módulo 4 - Encargos sociais e trabalhistas | D111: % | E111: Valor (R$)
A112: 4.1 | B112: GRUPO "A" | D112: 0.368 | E112: =E83 -> 329.36
A113: 4.2 | B113: GRUPO "B" | D113: 0.282 | E113: =E96 -> 318.66
A114: 4.3 | B114: GRUPO "C" | D114: 0.0945 | E114: =E103 -> 106.785
A115: 4.4 | B115: GRUPO "D" | D115: 0.1038 | E115: =E108 -> 117.294
A116: 4.6 | B116: Outros (especificar) | D116: - | E116: 0
A117: TOTAL | D117: 0.8483 | E117: =SUM(E112:E116) -> 872.099
A119: MÓDULO 5: BENEFÍCIO E CUSTOS INDIRETOS (BDI)
A120: 5 | B120: Benefício e Custos Indiretos - BDI | D120: % | E120: Valor (R$)
A121: A | B121: Custo Indireto | D121: 0.06 | E121: =E137*D121 -> 151.32794
A122: D | B122: Tributos Federais (COFINS/PIS) | D122: 0.0365 | E122: =(E137+E121+E124)*3.65/91.35 -> 116.898832 | F122: 0.0865 | G122: Erro:508
A123: E | B123: Tributos Municipais (ISSQN ou ISS) | D123: 0.05 | E123: =(E137+E121+E124)*5/91.35 -> 160.1353862
A124: F | B124: Lucro | D124: 0.1 | E124: =E137*D124 -> 252.2132333
A125: TOTAL | D125: =SUM(D121:D124) -> 0.2465 | E125: =SUM(E121:E124) -> 680.5753915
A126: Notas: - Custos Indiretos, Tributos e Lucro por empregado.
A127: - O valor referente a tributos é obtido aplicando-se o percentual sobre o valor do faturamento.
A129: ANEXO III - B - PORTARIA Nº 07 DE 09/03/2011 - SLTI/MPOG
A130: Quadro Resumo do Custo por Empregado
A132: Mão de obra vinculada à execução contratual (valor por empregado) | E132: Valor (R$)
A133: A | B133: Módulo 1 – Composição da Remuneração | E133: =E50 -> 1130
A134: B | B134: Módulo 2 – Benefícios Mensais e Diários | E134: =E60 -> 414.2
A135: C | B135: Módulo 3 – Insumos Diversos (uniformes e outros) | E135: =E69 -> 105.8333333
A136: D | B136: Módulo 4 – Encargos Sociais e Trabalhistas | E136: =E117 -> 872.099
A137: Subtotal (A + B + C + D) | E137: =SUM(E133:E136) -> 2522.132333
A138: E | B138: Módulo 5 – Benefício e Custos Indiretos | E138: =E125 -> 680.5753915
A139: VALOR MENSAL POR COPEIRA | E139: =SUM(E137:E138) -> 3202.707725

Sheet 1.3 - Jardineiro
A1: PLANILHA DE CUSTOS E FORMAÇÃO DE PREÇOS
B2: 5ª SUPERINTENDÊNCIA REGIONAL
A5: ANEXO IV DO TERMO DE REFERÊNCIA
A8: N° Processo Administrativo
A9: Licitação N° | C9: PE Nº.
A10: Data: ______/______/_______ | C10: Hora: _____:_____ horas
A13: DISCRIMINAÇÃO DOS SERVIÇOS (dados referentes à contratação)
A14: A | B14: Data de apresentação da proposta (dia/mês/ano)
A15: B | B15: Município/UF | E15: Penedo/AL
A16: C | B16: Ano Acordo, Convenção ou Sentença Normativa em Dissídio Coletivo | E16: 2021
A17: D | B17: Nº de meses de execução contratual | E17: 12 meses
A20: IDENTIFICAÇÃO DO SERVIÇO
A21: Tipo de serviço | C21: Unidade de Medida | D21: Quantidade total a contratar (em função da unidade de medida)
A23: Jardinagem e limpeza externa | C23: Posto | D23: 3
A29: ANEXO VII-D DA INSTRUÇÃO NORMATIVA Nº 5/2017 - SEGES/MPDG
A31: Descrição:
A32: Prestação dos serviços de Limpeza, Sanitização, Conservação, Manutenção predial, de equipamentos e instalações elétricas, Copa, Jardinagem e Recepção nas instalações da CODEVASF – 5ª SR, com carga horária de 44 (quarenta e quatro) horas semanais, de segunda à sexta.
A33: Dados complementares para composição dos custos referente à mão de obra
A34: 1 | B34: Prestação de serviços no prédio da CODEVASF/5ª SR | E34: Penedo/AL
A35: 2 | B35: Salário normativo da categoria profissional | E35: 1331
A36: 3 | B36: Categoria profissional vinculada à execução contratual (SINDLIMP/AL) | E36: Jardineiro
A37: 4 | B37: Data-base da categoria (dia/mês/ano) | E37: 2021-01-01
A38: * Utilizada como base para o reajuste da categoria profissional previsto nos Acordos, Convenções ou Sentenças Normativas em Dissídios Coletivos.
A40: MÓDULO 1: COMPOSIÇÃO DA REMUNERAÇÃO
A41: 1 | B41: Composição da Remuneração | E41: Valor (R$)
A42: A | B42: Salário Base | E42: =E35 -> 1331
A43: B | B43: Adicional de Periculosidade | E43: 0
A44: C | B44: Adicional de Insalubridade | E44: 0
A45: D | B45: Adicional Noturno | E45: 0
A46: E | B46: Hora noturna adicional | E46: 0
A47: F | B47: Adicional de hora extra | E47: 0
A48: G | B48: Intervalo intrajornada | E48: 0
A49: H | B49: Outros (especificar) | E49: 0
A50: TOTAL DA REMUNERAÇÃO | E50: =SUM(E42:E49) -> 1331
A52: MÓDULO 2: BENEFÍCIOS MENSAIS E DIÁRIOS
A53: 2 | B53: Benefícios Mensais e Diários | E53: Valor (R$)
A54: A | B54: Vale Transporte (Deduzido 6% parte empregado) R$ 2,5,00 (valor transporte)*2*22 (dias trab.) = R$ 110,00 - 6% do sal. Base | E54: =(2.5*2*22)-(0.06*E42) -> 30.14
A55: B | B55: Auxílio alimentação (Vales, cesta básica, etc.) - CCT 2021 | E55: =440-(0.2*440) -> 352
A56: C | B56: Assistência médica e familiar - CCT 2021 | E56: 10
A57: D | B57: Auxílio creche | E57: 0
A58: E | B58: Seguro de vida, invalidez e funeral | E58: 10
A59: F | B59: Outros (especificar) | E59: 0
A60: TOTAL DE BENEFÍCIOS MENSAIS E DIÁRIOS | E60: =SUM(E54:E59) -> 402.14
A61: Nota: o valor informado deverá ser o custo real do insumo (descontado o valor eventualmente pago pelo empregado).
A63: MÓDULO 3: INSUMOS DIVERSOS
A64: 3 | B64: Insumos Diversos | E64: Valor (R$)
A65: A | B65: Uniformes | E65: =Insumos!C11/36 -> 100
A66: B | B66: Materiais | E66: 0
A67: C | B67: Equipamentos | E67: =SUM(Insumos!D11:G11)/36 -> 8.666666667
A68: D | B68: Outros (especificar) | E68: -
A69: TOTAL DE INSUMOS DIVERSOS | E69: =SUM(E65:E68) -> 108.6666667
A70: Nota: Valores mensais por empregado.
A72: MÓDULO 4: ENCARGOS SOCIAIS E TRABALHISTAS
A73: GRUPO "A"
A74: 4.1 | B74: GRUPO "A" | D74: % | E74: Valor (R$)
A75: A | B75: INSS (Art. 22 inciso I da Lei 8.212/91) | D75: 0.2 | E75: =E50*D75 -> 266.2
A76: B | B76: FGTS (Art. 15 da Lei 8030/90 art. 7° inciso III CF/88) | D76: 0.08 | E76: =E50*D76 -> 106.48
A77: C | B77: Riscos Ambientais do Trabalho - RAT x FAP - (Decreto 3.048/1999, Anexo V e Decreto 6.957/2009) | D77: 0.03 | E77: =E50*D77 -> 39.93
A78: D | B78: Salário Educação (Art. 3° inciso I Decreto 87.043/) | D78: 0.025 | E78: =E50*D78 -> 33.275
A79: E | B79: SESC/SESI (Art. 3° da Lei 8036/90) | D79: 0.015 | E79: =E50*D79 -> 19.965
A80: F | B80: SENAC/SENAI (Decreto 2.318/86) | D80: 0.01 | E80: =E50*D80 -> 13.31
A81: G | B81: SEBRAE (Art. 8° Lei 8029/90 e 8154 de 28/12/90) | D81: 0.006 | E81: =E50*D81 -> 7.986
A82: H | B82: INCRA (Lei 7787 de 30/06/890e DL 1146/70) | D82: 0.002 | E82: =E50*D82 -> 2.662
A83: TOTAL | D83: =SUM(D75:D82) -> 0.368 | E83: 329.36
A84: Notas: - Os percentuais dos encargos previdenciários e FGTS, a serem preenchidos na coluna %, são aqueles estabelecidos pela legislação vigente.
A85: - Percentuais incidentes sobre a remuneração.
A87: GRUPO "B"
A88: B | B88: GRUPO "B" | D88: % | E88: Valor (R$)
A89: A | B89: 13º salário (1/12) | D89: 0.0833 | E89: =E50*D89 -> 110.8723
A90: B | B90: Férias (incluindo 1/3) (1/12 + (1+1/3) CCT 2013 | D90: 0.1203 | E90: =E50*D90 -> 160.1193
A91: C | B91: Aviso prévio trabalhado | D91: 0.0037 | E91: =D91*E50 -> 4.9247
A92: D | B92: Auxílio-enfermidade | D92: 0.0185 | E92: =E50*D92 -> 24.6235
A93: E | B93: Auxílio acidente de trabalho | D93: 0.013 | E93: =E50*D93 -> 17.303
A94: F | B94: Faltas legais | D94: 0.0299 | E94: =E50*D94 -> 39.7969
A95: G | B95: Licença paternidade | D95: 0.0133 | E95: =E50*D95 -> 17.7023
A96: TOTAL | D96: =SUM(D89:D95) -> 0.282 | E96: =SUM(E89:E95) -> 375.342
A98: GRUPO "C"
A99: C | B99: GRUPO "C" | D99: % | E99: Valor (R$)
A100: A | B100: Aviso Prévio Indenizado | D100: 0.0165 | E100: =E50*D100 -> 21.9615
A101: B | B101: Indenização adicional | D101: 0.038 | E101: =E50*D101 -> 50.578
A102: C | B102: FGTS nas rescisões sem justa causa | D102: 0.04 | E102: =E50*D102 -> 53.24
A103: TOTAL | D103: =SUM(D100:D102) -> 0.0945 | E103: =SUM(E100:E102) -> 125.7795
A105: GRUPO "D"
A106: D | B106: GRUPO "D" | D106: % | E106: Valor (R$)
A107: A | B107: Incidência do grupo "A" sobre o grupo "B" | D107: 0.1038 | E107: =E50*D107 -> 138.1578
A108: TOTAL | D108: 0.1038 | E108: =SUM(E107) -> 138.1578
A110: QUADRO-RESUMO - Módulo 4 - Encargos Sociais e Trabalhistas
A111: 4 | B111: Módulo 4 - Encargos sociais e trabalhistas | D111: % | E111: Valor (R$)
A112: 4.1 | B112: GRUPO "A" | D112: 0.368 | E112: =E83 -> 329.36
A113: 4.2 | B113: GRUPO "B" | D113: 0.282 | E113: =E96 -> 375.342
A114: 4.3 | B114: GRUPO "C" | D114: 0.0945 | E114: =E103 -> 125.7795
A115: 4.4 | B115: GRUPO "D" | D115: 0.1038 | E115: =E108 -> 138.1578
A116: 4.6 | B116: Outros (especificar) | D116: - | E116: 0
A117: TOTAL | D117: 0.8483 | E117: =SUM(E112:E116) -> 968.6393
A119: MÓDULO 5: BENEFÍCIO E CUSTOS INDIRETOS (BDI)
A120: 5 | B120: Benefício e Custos Indiretos - BDI | D120: % | E120: Valor (R$)
A121: A | B121: Custo Indireto | D121: 0.06 | E121: =E137*D121 -> 168.626758
A122: D | B122: Tributos Federais (COFINS/PIS) | D122: 0.0365 | E122: =(E137+E121+E124)*3.65/91.35 -> 130.26194
A123: E | B123: Tributos Municipais (ISSQN ou ISS) | D123: 0.05 | E123: =(E137+E121+E124)*5/91.35 -> 178.4410138
A124: F | B124: Lucro | D124: 0.1 | E124: =E137*D124 -> 281.0445967
A125: TOTAL | D125: =SUM(D121:D124) -> 0.2465 | E125: =SUM(E121:E124) -> 758.3743085
A126: Notas: - Custos Indiretos, Tributos e Lucro por empregado.
A127: - O valor referente a tributos é obtido aplicando-se o percentual sobre o valor do faturamento.
A129: ANEXO III - B - PORTARIA Nº 07 DE 09/03/2011 - SLTI/MPOG
A130: Quadro Resumo do Custo por Empregado
A132: Mão de obra vinculada à execução contratual (valor por empregado) | E132: Valor (R$)
A133: A | B133: Módulo 1 – Composição da Remuneração | E133: =E50 -> 1331
A134: B | B134: Módulo 2 – Benefícios Mensais e Diários | E134: =E60 -> 402.14
A135: C | B135: Módulo 3 – Insumos Diversos (uniformes e outros) | E135: =E69 -> 108.6666667
A136: D | B136: Módulo 4 – Encargos Sociais e Trabalhistas | E136: =E117 -> 968.6393
A137: Subtotal (A + B + C + D) | E137: =SUM(E133:E136) -> 2810.445967
A138: E | B138: Módulo 5 – Benefício e Custos Indiretos | E138: =E125 -> 758.3743085
A139: VALOR MENSAL POR JARDINEIRO | E139: =SUM(E137:E138) -> 3568.820275

Sheet 1.4 - Recepcionista
A1: PLANILHA DE CUSTOS E FORMAÇÃO DE PREÇOS
B2: 5ª SUPERINTENDÊNCIA REGIONAL
A5: ANEXO IV DO TERMO DE REFERÊNCIA
A8: N° Processo Administrativo
A9: Licitação N° | C9: PE Nº.
A10: Data: ______/______/_______ | C10: Hora: _____:_____ horas
A13: DISCRIMINAÇÃO DOS SERVIÇOS (dados referentes à contratação)
A14: A | B14: Data de apresentação da proposta (dia/mês/ano)
A15: B | B15: Município/UF | E15: Penedo/AL
A16: C | B16: Ano Acordo, Convenção ou Sentença Normativa em Dissídio Coletivo | E16: 2021
A17: D | B17: Nº de meses de execução contratual | E17: 12 meses
A20: IDENTIFICAÇÃO DO SERVIÇO
A21: Tipo de serviço | C21: Unidade de Medida | D21: Quantidade total a contratar (em função da unidade de medida)
A23: Atendimento de púbico, prestação de informações e recebimento de visitantes para encaminhamento aos funcionários da empresa. | C23: Posto | D23: 1
A29: ANEXO VII-D DA INSTRUÇÃO NORMATIVA Nº 5/2017 - SEGES/MPDG
A31: Descrição:
A32: Prestação dos serviços de Limpeza, Sanitização, Conservação, Manutenção predial, de equipamentos e instalações elétricas, Copa, Jardinagem e Recepção nas instalações da CODEVASF – 5ª SR, com carga horária de 44 (quarenta e quatro) horas semanais, de segunda à sexta.
A33: Dados complementares para composição dos custos referente à mão de obra
A34: 1 | B34: Prestação de serviços no prédio da CODEVASF/5ª SR | E34: Penedo/AL
A35: 2 | B35: Salário normativo da categoria profissional | E35: 1356
A36: 3 | B36: Categoria profissional vinculada à execução contratual (SINDLIMP/AL) | E36: Recepcionista
A37: 4 | B37: Data-base da categoria (dia/mês/ano) | E37: 2021-01-01
A38: * Utilizada como base para o reajuste da categoria profissional previsto nos Acordos, Convenções ou Sentenças Normativas em Dissídios Coletivos.
A40: MÓDULO 1: COMPOSIÇÃO DA REMUNERAÇÃO
A41: 1 | B41: Composição da Remuneração | E41: Valor (R$)
A42: A | B42: Salário Base | E42: =E35 -> 1356
A43: B | B43: Adicional de Periculosidade | E43: 0
A44: C | B44: Adicional de Insalubridade | E44: 0
A45: D | B45: Adicional Noturno | E45: 0
A46: E | B46: Hora noturna adicional | E46: 0
A47: F | B47: Adicional de hora extra | E47: 0
A48: G | B48: Intervalo intrajornada | E48: 0
A49: H | B49: Outros (especificar) | E49: 0
A50: TOTAL DA REMUNERAÇÃO | E50: =E35 -> 1356
A52: MÓDULO 2: BENEFÍCIOS MENSAIS E DIÁRIOS
A53: 2 | B53: Benefícios Mensais e Diários | E53: Valor (R$)
A54: A | B54: Vale Transporte (Deduzido 6% parte empregado) R$ 2,5,00 (valor transporte)*2*22 (dias trab.) = R$ 110,00 - 6% do sal. Base | E54: =(2.5*2*22)-(0.06*E42) -> 28.64
A55: B | B55: Auxílio alimentação (Vales, cesta básica, etc.) - CCT 2021 | E55: =440-(0.2*440) -> 352
A56: C | B56: Assistência médica e familiar - CCT 2021 | E56: 10
A57: D | B57: Auxílio creche | E57: 0
A58: E | B58: Seguro de vida, invalidez e funeral | E58: 10
A59: F | B59: Outros (especificar) | E59: 0
A60: TOTAL DE BENEFÍCIOS MENSAIS E DIÁRIOS | E60: =SUM(E54:E59) -> 400.64
A61: Nota: o valor informado deverá ser o custo real do insumo (descontado o valor eventualmente pago pelo empregado).
A63: MÓDULO 3: INSUMOS DIVERSOS
A64: 3 | B64: Insumos Diversos | E64: Valor (R$)
A65: A | B65: Uniformes | E65: =Insumos!C15/12 -> 100
A66: B | B66: Materiais | E66: 0
A67: C | B67: Equipamentos | E67: -
A68: D | B68: Outros (especificar) | E68: -
A69: TOTAL DE INSUMOS DIVERSOS | E69: =SUM(E65:E68) -> 100
A70: Nota: Valores mensais por empregado.
A72: MÓDULO 4: ENCARGOS SOCIAIS E TRABALHISTAS
A73: GRUPO "A"
A74: 4.1 | B74: GRUPO "A" | D74: % | E74: Valor (R$)
A75: A | B75: INSS (Art. 22 inciso I da Lei 8.212/91) | D75: 0.2 | E75: =E50*D75 -> 271.2
A76: B | B76: FGTS (Art. 15 da Lei 8030/90 art. 7° inciso III CF/88) | D76: 0.08 | E76: =E50*D76 -> 108.48
A77: C | B77: Riscos Ambientais do Trabalho - RAT x FAP - (Decreto 3.048/1999, Anexo V e Decreto 6.957/2009) | D77: 0.03 | E77: =E50*D77 -> 40.68
A78: D | B78: Salário Educação (Art. 3° inciso I Decreto 87.043/) | D78: 0.025 | E78: =E50*D78 -> 33.9
A79: E | B79: SESC/SESI (Art. 3° da Lei 8036/90) | D79: 0.015 | E79: =E50*D79 -> 20.34
A80: F | B80: SENAC/SENAI (Decreto 2.318/86) | D80: 0.01 | E80: =E50*D80 -> 13.56
A81: G | B81: SEBRAE (Art. 8° Lei 8029/90 e 8154 de 28/12/90) | D81: 0.006 | E81: =E50*D81 -> 8.136
A82: H | B82: INCRA (Lei 7787 de 30/06/890e DL 1146/70) | D82: 0.002 | E82: =E50*D82 -> 2.712
A83: TOTAL | D83: =SUM(D75:D82) -> 0.368 | E83: 329.36
A84: Notas: - Os percentuais dos encargos previdenciários e FGTS, a serem preenchidos na coluna %, são aqueles estabelecidos pela legislação vigente.
A85: - Percentuais incidentes sobre a remuneração.
A87: GRUPO "B"
A88: B | B88: GRUPO "B" | D88: % | E88: Valor (R$)
A89: A | B89: 13º salário (1/12) | D89: 0.0833 | E89: =E50*D89 -> 112.9548
A90: B | B90: Férias (incluindo 1/3) (1/12 + (1+1/3) CCT 2013 | D90: 0.1203 | E90: =E50*D90 -> 163.1268
A91: C | B91: Aviso prévio trabalhado | D91: 0.0037 | E91: =D91*E50 -> 5.0172
A92: D | B92: Auxílio-enfermidade | D92: 0.0185 | E92: =E50*D92 -> 25.086
A93: E | B93: Auxílio acidente de trabalho | D93: 0.013 | E93: =E50*D93 -> 17.628
A94: F | B94: Faltas legais | D94: 0.0299 | E94: =E50*D94 -> 40.5444
A95: G | B95: Licença paternidade | D95: 0.0133 | E95: =E50*D95 -> 18.0348
A96: TOTAL | D96: =SUM(D89:D95) -> 0.282 | E96: =SUM(E89:E95) -> 382.392
A98: GRUPO "C"
A99: C | B99: GRUPO "C" | D99: % | E99: Valor (R$)
A100: A | B100: Aviso Prévio Indenizado | D100: 0.0165 | E100: =E50*D100 -> 22.374
A101: B | B101: Indenização adicional | D101: 0.038 | E101: =E50*D101 -> 51.528
A102: C | B102: FGTS nas rescisões sem justa causa | D102: 0.04 | E102: =E50*D102 -> 54.24
A103: TOTAL | D103: =SUM(D100:D102) -> 0.0945 | E103: =SUM(E100:E102) -> 128.142
A105: GRUPO "D"
A106: D | B106: GRUPO "D" | D106: % | E106: Valor (R$)
A107: A | B107: Incidência do grupo "A" sobre o grupo "B" | D107: 0.1038 | E107: =E50*D107 -> 140.7528
A108: TOTAL | D108: 0.1038 | E108: =SUM(E107) -> 140.7528
A110: QUADRO-RESUMO - Módulo 4 - Encargos Sociais e Trabalhistas
A111: 4 | B111: Módulo 4 - Encargos sociais e trabalhistas | D111: % | E111: Valor (R$)
A112: 4.1 | B112: GRUPO "A" | D112: 0.368 | E112: =E83 -> 329.36
A113: 4.2 | B113: GRUPO "B" | D113: 0.282 | E113: =E96 -> 382.392
A114: 4.3 | B114: GRUPO "C" | D114: 0.0945 | E114: =E103 -> 128.142
A115: 4.4 | B115: GRUPO "D" | D115: 0.1038 | E115: =E108 -> 140.7528
A116: 4.6 | B116: Outros (especificar) | D116: - | E116: 0
A117: TOTAL | D117: 0.8483 | E117: =SUM(E112:E116) -> 980.6468
A119: MÓDULO 5: BENEFÍCIO E CUSTOS INDIRETOS (BDI)
A120: 5 | B120: Benefício e Custos Indiretos - BDI | D120: % | E120: Valor (R$)
A121: A | B121: Custo Indireto | D121: 0.06 | E121: =E137*D121 -> 170.237208
A122: D | B122: Tributos Federais (COFINS/PIS) | D122: 0.0365 | E122: =(E137+E121+E124)*3.65/91.35 -> 131.5059914
A123: E | B123: Tributos Municipais (ISSQN ou ISS) | D123: 0.05 | E123: =(E137+E121+E124)*5/91.35 -> 180.1451937
A124: F | B124: Lucro | D124: 0.1 | E124: =E137*D124 -> 283.72868
A125: TOTAL | D125: =SUM(D121:D124) -> 0.2465 | E125: =SUM(E121:E124) -> 765.617073
A126: Notas: - Custos Indiretos, Tributos e Lucro por empregado.
A127: - O valor referente a tributos é obtido aplicando-se o percentual sobre o valor do faturamento.
A129: ANEXO III - B - PORTARIA Nº 07 DE 09/03/2011 - SLTI/MPOG
A130: Quadro Resumo do Custo por Empregado
A132: Mão de obra vinculada à execução contratual (valor por empregado) | E132: Valor (R$)
A133: A | B133: Módulo 1 – Composição da Remuneração | E133: =E50 -> 1356
A134: B | B134: Módulo 2 – Benefícios Mensais e Diários | E134: =E60 -> 400.64
A135: C | B135: Módulo 3 – Insumos Diversos (uniformes e outros) | E135: =E69 -> 100
A136: D | B136: Módulo 4 – Encargos Sociais e Trabalhistas | E136: =E117 -> 980.6468
A137: Subtotal (A + B + C + D) | E137: =SUM(E133:E136) -> 2837.2868
A138: E | B138: Módulo 5 – Benefício e Custos Indiretos | E138: =E125 -> 765.617073
A139: VALOR MENSAL POR RECEPCIONISTA | E139: =SUM(E137:E138) -> 3602.903873

Sheet 1.5 - Eletricista
A1: PLANILHA DE CUSTOS E FORMAÇÃO DE PREÇOS
B2: 5ª SUPERINTENDÊNCIA REGIONAL
A5: ANEXO IV DO TERMO DE REFERÊNCIA
A8: N° Processo Administrativo
A9: Licitação N° | C9: PE Nº.
A10: Data: ______/______/_______ | C10: Hora: _____:_____ horas
A13: DISCRIMINAÇÃO DOS SERVIÇOS (dados referentes à contratação)
A14: A | B14: Data de apresentação da proposta (dia/mês/ano)
A15: B | B15: Município/UF | E15: Penedo/AL
A16: C | B16: Ano Acordo, Convenção ou Sentença Normativa em Dissídio Coletivo | E16: 2021
A17: D | B17: Nº de meses de execução contratual | E17: 12 meses
A20: IDENTIFICAÇÃO DO SERVIÇO
A21: Tipo de serviço | C21: Unidade de Medida | D21: Quantidade total a contratar (em função da unidade de medida)
A23: Serviços de manutenção elétrica em geral, em baixa e alta tensão da rede elétrica, em quadros de distribuição de energia, trocando luminárias, lâmpadas e reatores e efetuando a limpeza e desobstrução de eletrodutos e demais serviços afins. | C23: Posto | D23: 1
A29: ANEXO VII-D DA INSTRUÇÃO NORMATIVA Nº 5/2017 - SEGES/MPDG
A31: Descrição:
A32: Prestação dos serviços de Limpeza, Sanitização, Conservação, Manutenção predial, de equipamentos e instalações elétricas, Copa, Jardinagem e Recepção nas instalações da CODEVASF – 5ª SR, com carga horária de 44 (quarenta e quatro) horas semanais, de segunda à sexta.
A33: Dados complementares para composição dos custos referente à mão de obra
A34: 1 | B34: Prestação de serviços no prédio da CODEVASF/5ª SR | E34: Penedo/AL
A35: 2 | B35: Salário normativo da categoria profissional | E35: 1712.5
A36: 3 | B36: Categoria profissional vinculada à execução contratual (SINDLIMP/AL) | E36: Eletricista de Alta e de Baixa Tensão
A37: 4 | B37: Data-base da categoria (dia/mês/ano) | E37: 2021-01-01
A38: * Utilizada como base para o reajuste da categoria profissional previsto nos Acordos, Convenções ou Sentenças Normativas em Dissídios Coletivos.
A40: MÓDULO 1: COMPOSIÇÃO DA REMUNERAÇÃO
A41: 1 | B41: Composição da Remuneração | E41: Valor (R$)
A42: A | B42: Salário Base | E42: =E35 -> 1712.5
A43: B | B43: Adicional de Periculosidade | E43: =0.3*E42 -> 513.75
A44: C | B44: Adicional de Insalubridade | E44: 0
A45: D | B45: Adicional Noturno | E45: 0
A46: E | B46: Hora noturna adicional | E46: 0
A47: F | B47: Adicional de hora extra | E47: 0
A48: G | B48: Intervalo intrajornada | E48: 0
A49: H | B49: Outros (especificar) | E49: 0
A50: TOTAL DA REMUNERAÇÃO | E50: =SUM(E42:E49) -> 2226.25
A52: MÓDULO 2: BENEFÍCIOS MENSAIS E DIÁRIOS
A53: 2 | B53: Benefícios Mensais e Diários | E53: Valor (R$)
A54: A | B54: Vale Transporte (Deduzido 6% parte empregado) R$ 2,5,00 (valor transporte)*2*22 (dias trab.) = R$ 110,00 - 6% do sal. Base | E54: =(2.5*2*22)-(0.06*E42) -> 7.25
A55: B | B55: Auxílio alimentação (Vales, cesta básica, etc.) - CCT 2021 | E55: =440-(0.2*440) -> 352
A56: C | B56: Assistência médica e familiar - CCT 2021 | E56: 10
A57: D | B57: Auxílio creche | E57: 0
A58: E | B58: Seguro de vida, invalidez e funeral | E58: 10
A59: F | B59: Outros (especificar) | E59: 0
A60: TOTAL DE BENEFÍCIOS MENSAIS E DIÁRIOS | E60: =SUM(E54:E59) -> 379.25
A61: Nota: o valor informado deverá ser o custo real do insumo (descontado o valor eventualmente pago pelo empregado).
A63: MÓDULO 3: INSUMOS DIVERSOS
A64: 3 | B64: Insumos Diversos | E64: Valor (R$)
A65: A | B65: Uniformes | E65: =Insumos!C12/12 -> 100
A66: B | B66: Materiais | E66: 0
A67: C | B67: Equipamentos | E67: =SUM(Insumos!D12:G12)/12 -> 47
A68: D | B68: Outros (especificar) | E68: -
A69: TOTAL DE INSUMOS DIVERSOS | E69: =SUM(E65:E68) -> 147
A70: Nota: Valores mensais por empregado.
A72: MÓDULO 4: ENCARGOS SOCIAIS E TRABALHISTAS
A73: GRUPO "A"
A74: 4.1 | B74: GRUPO "A" | D74: % | E74: Valor (R$)
A75: A | B75: INSS (Art. 22 inciso I da Lei 8.212/91) | D75: 0.2 | E75: =E50*D75 -> 445.25
A76: B | B76: FGTS (Art. 15 da Lei 8030/90 art. 7° inciso III CF/88) | D76: 0.08 | E76: =E50*D76 -> 178.1
A77: C | B77: Riscos Ambientais do Trabalho - RAT x FAP - (Decreto 3.048/1999, Anexo V e Decreto 6.957/2009) | D77: 0.03 | E77: =E50*D77 -> 66.7875
A78: D | B78: Salário Educação (Art. 3° inciso I Decreto 87.043/) | D78: 0.025 | E78: =E50*D78 -> 55.65625
A79: E | B79: SESC/SESI (Art. 3° da Lei 8036/90) | D79: 0.015 | E79: =E50*D79 -> 33.39375
A80: F | B80: SENAC/SENAI (Decreto 2.318/86) | D80: 0.01 | E80: =E50*D80 -> 22.2625
A81: G | B81: SEBRAE (Art. 8° Lei 8029/90 e 8154 de 28/12/90) | D81: 0.006 | E81: =E50*D81 -> 13.3575
A82: H | B82: INCRA (Lei 7787 de 30/06/890e DL 1146/70) | D82: 0.002 | E82: =E50*D82 -> 4.4525
A83: TOTAL | D83: =SUM(D75:D82) -> 0.368 | E83: 329.36
A84: Notas: - Os percentuais dos encargos previdenciários e FGTS, a serem preenchidos na coluna %, são aqueles estabelecidos pela legislação vigente.
A85: - Percentuais incidentes sobre a remuneração.
A87: GRUPO "B"
A88: B | B88: GRUPO "B" | D88: % | E88: Valor (R$)
A89: A | B89: 13º salário (1/12) | D89: 0.0833 | E89: =E50*D89 -> 185.446625
A90: B | B90: Férias (incluindo 1/3) (1/12 + (1+1/3) CCT 2013 | D90: 0.1203 | E90: =E50*D90 -> 267.817875
A91: C | B91: Aviso prévio trabalhado | D91: 0.0037 | E91: =D91*E50 -> 8.237125
A92: D | B92: Auxílio-enfermidade | D92: 0.0185 | E92: =E50*D92 -> 41.185625
A93: E | B93: Auxílio acidente de trabalho | D93: 0.013 | E93: =E50*D93 -> 28.94125
A94: F | B94: Faltas legais | D94: 0.0299 | E94: =E50*D94 -> 66.564875
A95: G | B95: Licença paternidade | D95: 0.0133 | E95: =E50*D95 -> 29.609125
A96: TOTAL | D96: =SUM(D89:D95) -> 0.282 | E96: =SUM(E89:E95) -> 627.8025
A98: GRUPO "C"
A99: C | B99: GRUPO "C" | D99: % | E99: Valor (R$)
A100: A | B100: Aviso Prévio Indenizado | D100: 0.0165 | E100: =E50*D100 -> 36.733125
A101: B | B101: Indenização adicional | D101: 0.038 | E101: =E50*D101 -> 84.5975
A102: C | B102: FGTS nas rescisões sem justa causa | D102: 0.04 | E102: =E50*D102 -> 89.05
A103: TOTAL | D103: =SUM(D100:D102) -> 0.0945 | E103: =SUM(E100:E102) -> 210.380625
A105: GRUPO "D"
A106: D | B106: GRUPO "D" | D106: % | E106: Valor (R$)
A107: A | B107: Incidência do grupo "A" sobre o grupo "B" | D107: 0.1038 | E107: =E50*D107 -> 231.08475
A108: TOTAL | D108: 0.1038 | E108: =SUM(E107) -> 231.08475
A110: QUADRO-RESUMO - Módulo 4 - Encargos Sociais e Trabalhistas
A111: 4 | B111: Módulo 4 - Encargos sociais e trabalhistas | D111: % | E111: Valor (R$)
A112: 4.1 | B112: GRUPO "A" | D112: 0.368 | E112: =E83 -> 329.36
A113: 4.2 | B113: GRUPO "B" | D113: 0.282 | E113: =E96 -> 627.8025
A114: 4.3 | B114: GRUPO "C" | D114: 0.0945 | E114: =E103 -> 210.380625
A115: 4.4 | B115: GRUPO "D" | D115: 0.1038 | E115: =E108 -> 231.08475
A116: 4.6 | B116: Outros (especificar) | D116: - | E116: 0
A117: TOTAL | D117: 0.8483 | E117: =SUM(E112:E116) -> 1398.627875
A119: MÓDULO 5: BENEFÍCIO E CUSTOS INDIRETOS (BDI)
A120: 5 | B120: Benefício e Custos Indiretos - BDI | D120: % | E120: Valor (R$)
A121: A | B121: Custo Indireto | D121: 0.06 | E121: =E137*D121 -> 249.0676725
A122: D | B122: Tributos Federais (COFINS/PIS) | D122: 0.0365 | E122: =(E137+E121+E124)*3.65/91.35 -> 192.4014825
A123: E | B123: Tributos Municipais (ISSQN ou ISS) | D123: 0.05 | E123: =(E137+E121+E124)*5/91.35 -> 263.5636746
A124: F | B124: Lucro | D124: 0.1 | E124: =E137*D124 -> 415.1127875
A125: TOTAL | D125: =SUM(D121:D124) -> 0.2465 | E125: =SUM(E121:E124) -> 1120.145617
A126: Notas: - Custos Indiretos, Tributos e Lucro por empregado.
A127: - O valor referente a tributos é obtido aplicando-se o percentual sobre o valor do faturamento.
A129: ANEXO III - B - PORTARIA Nº 07 DE 09/03/2011 - SLTI/MPOG
A130: Quadro Resumo do Custo por Empregado
A132: Mão de obra vinculada à execução contratual (valor por empregado) | E132: Valor (R$)
A133: A | B133: Módulo 1 – Composição da Remuneração | E133: =E50 -> 2226.25
A134: B | B134: Módulo 2 – Benefícios Mensais e Diários | E134: =E60 -> 379.25
A135: C | B135: Módulo 3 – Insumos Diversos (uniformes e outros) | E135: =E69 -> 147
A136: D | B136: Módulo 4 – Encargos Sociais e Trabalhistas | E136: =E117 -> 1398.627875
A137: Subtotal (A + B + C + D) | E137: =SUM(E133:E136) -> 4151.127875
A138: E | B138: Módulo 5 – Benefício e Custos Indiretos | E138: =E125 -> 1120.145617
A139: VALOR MENSAL POR ELETRICISTA DE ALTA E DE BAIXA TENSÃO | E139: =SUM(E137:E138) -> 5271.273492

Sheet 1.6 - Assistente de Manutenção
A1: PLANILHA DE CUSTOS E FORMAÇÃO DE PREÇOS
B2: 5ª SUPERINTENDÊNCIA REGIONAL
A5: ANEXO IV DO TERMO DE REFERÊNCIA
A8: N° Processo Administrativo
A9: Licitação N° | C9: PE Nº.
A10: Data: ______/______/_______ | C10: Hora: _____:_____ horas
A13: DISCRIMINAÇÃO DOS SERVIÇOS (dados referentes à contratação)
A14: A | B14: Data de apresentação da proposta (dia/mês/ano)
A15: B | B15: Município/UF | E15: Penedo/AL
A16: C | B16: Ano Acordo, Convenção ou Sentença Normativa em Dissídio Coletivo | E16: 2021
A17: D | B17: Nº de meses de execução contratual | E17: 12 meses
A20: IDENTIFICAÇÃO DO SERVIÇO
A21: Tipo de serviço | C21: Unidade de Medida | D21: Quantidade total a contratar (em função da unidade de medida)
A23: Serviços de conservação e manutenção predial, equipamentos e instalações diversas (elétricas e hidráulicas) | C23: Posto | D23: 1
A29: ANEXO VII-D DA INSTRUÇÃO NORMATIVA Nº 5/2017 - SEGES/MPDG
A31: Descrição:
A32: Prestação dos serviços de Limpeza, Sanitização, Conservação, Manutenção predial, de equipamentos e instalações elétricas, Copa, Jardinagem e Recepção nas instalações da CODEVASF – 5ª SR, com carga horária de 44 (quarenta e quatro) horas semanais, de segunda à sexta.
A33: Dados complementares para composição dos custos referente à mão de obra
A34: 1 | B34: Prestação de serviços no prédio da CODEVASF/5ª SR | E34: Penedo/AL
A35: 2 | B35: Salário normativo da categoria profissional | E35: 1331
A36: 3 | B36: Categoria profissional vinculada à execução contratual (SINDLIMP/AL) | E36: Assistente de Manutenção
A37: 4 | B37: Data-base da categoria (dia/mês/ano) | E37: 2021-01-01
A38: * Utilizada como base para o reajuste da categoria profissional previsto nos Acordos, Convenções ou Sentenças Normativas em Dissídios Coletivos.
A40: MÓDULO 1: COMPOSIÇÃO DA REMUNERAÇÃO
A41: 1 | B41: Composição da Remuneração | E41: Valor (R$)
A42: A | B42: Salário Base | E42: =E35 -> 1331
A43: B | B43: Adicional de Periculosidade | E43: 0
A44: C | B44: Adicional de Insalubridade | E44: 0
A45: D | B45: Adicional Noturno | E45: 0
A46: E | B46: Hora noturna adicional | E46: 0
A47: F | B47: Adicional de hora extra | E47: 0
A48: G | B48: Intervalo intrajornada | E48: 0
A49: H | B49: Outros (especificar) | E49: 0
A50: TOTAL DA REMUNERAÇÃO | E50: =E35 -> 1331
A52: MÓDULO 2: BENEFÍCIOS MENSAIS E DIÁRIOS
A53: 2 | B53: Benefícios Mensais e Diários | E53: Valor (R$)
A54: A | B54: Vale Transporte (Deduzido 6% parte empregado) R$ 2,5,00 (valor transporte)*2*22 (dias trab.) = R$ 110,00 - 6% do sal. Base | E54: =(2.5*2*22)-(0.06*E42) -> 30.14
A55: B | B55: Auxílio alimentação (Vales, cesta básica, etc.) - CCT 2021 | E55: =440-(0.2*440) -> 352
A56: C | B56: Assistência médica e familiar - CCT 2021 | E56: 10
A57: D | B57: Auxílio creche | E57: 0
A58: E | B58: Seguro de vida, invalidez e funeral | E58: 10
A59: F | B59: Outros (especificar) | E59: 0
A60: TOTAL DE BENEFÍCIOS MENSAIS E DIÁRIOS | E60: =SUM(E54:E59) -> 402.14
A61: Nota: o valor informado deverá ser o custo real do insumo (descontado o valor eventualmente pago pelo empregado).
A63: MÓDULO 3: INSUMOS DIVERSOS
A64: 3 | B64: Insumos Diversos | E64: Valor (R$)
A65: A | B65: Uniformes | E65: =Insumos!C13/12 -> 100
A66: B | B66: Materiais | E66: 0
A67: C | B67: Equipamentos | E67: =SUM(Insumos!D13:G13)/12 -> 8.666666667
A68: D | B68: Outros (especificar) | E68: -
A69: TOTAL DE INSUMOS DIVERSOS | E69: =SUM(E65:E68) -> 108.6666667
A70: Nota: Valores mensais por empregado.
A72: MÓDULO 4: ENCARGOS SOCIAIS E TRABALHISTAS
A73: GRUPO "A"
A74: 4.1 | B74: GRUPO "A" | D74: % | E74: Valor (R$)
A75: A | B75: INSS (Art. 22 inciso I da Lei 8.212/91) | D75: 0.2 | E75: =E50*D75 -> 266.2
A76: B | B76: FGTS (Art. 15 da Lei 8030/90 art. 7° inciso III CF/88) | D76: 0.08 | E76: =E50*D76 -> 106.48
A77: C | B77: Riscos Ambientais do Trabalho - RAT x FAP - (Decreto 3.048/1999, Anexo V e Decreto 6.957/2009) | D77: 0.03 | E77: =E50*D77 -> 39.93
A78: D | B78: Salário Educação (Art. 3° inciso I Decreto 87.043/) | D78: 0.025 | E78: =E50*D78 -> 33.275
A79: E | B79: SESC/SESI (Art. 3° da Lei 8036/90) | D79: 0.015 | E79: =E50*D79 -> 19.965
A80: F | B80: SENAC/SENAI (Decreto 2.318/86) | D80: 0.01 | E80: =E50*D80 -> 13.31
A81: G | B81: SEBRAE (Art. 8° Lei 8029/90 e 8154 de 28/12/90) | D81: 0.006 | E81: =E50*D81 -> 7.986
A82: H | B82: INCRA (Lei 7787 de 30/06/890e DL 1146/70) | D82: 0.002 | E82: =E50*D82 -> 2.662
A83: TOTAL | D83: =SUM(D75:D82) -> 0.368 | E83: 329.36
A84: Notas: - Os percentuais dos encargos previdenciários e FGTS, a serem preenchidos na coluna %, são aqueles estabelecidos pela legislação vigente.
A85: - Percentuais incidentes sobre a remuneração.
A87: GRUPO "B"
A88: B | B88: GRUPO "B" | D88: % | E88: Valor (R$)
A89: A | B89: 13º salário (1/12) | D89: 0.0833 | E89: =E50*D89 -> 110.8723
A90: B | B90: Férias (incluindo 1/3) (1/12 + (1+1/3) CCT 2013 | D90: 0.1203 | E90: =E50*D90 -> 160.1193
A91: C | B91: Aviso prévio trabalhado | D91: 0.0037 | E91: =D91*E50 -> 4.9247
A92: D | B92: Auxílio-enfermidade | D92: 0.0185 | E92: =E50*D92 -> 24.6235
A93: E | B93: Auxílio acidente de trabalho | D93: 0.013 | E93: =E50*D93 -> 17.303
A94: F | B94: Faltas legais | D94: 0.0299 | E94: =E50*D94 -> 39.7969
A95: G | B95: Licença paternidade | D95: 0.0133 | E95: =E50*D95 -> 17.7023
A96: TOTAL | D96: =SUM(D89:D95) -> 0.282 | E96: =SUM(E89:E95) -> 375.342
A98: GRUPO "C"
A99: C | B99: GRUPO "C" | D99: % | E99: Valor (R$)
A100: A | B100: Aviso Prévio Indenizado | D100: 0.0165 | E100: =E50*D100 -> 21.9615
A101: B | B101: Indenização adicional | D101: 0.038 | E101: =E50*D101 -> 50.578
A102: C | B102: FGTS nas rescisões sem justa causa | D102: 0.04 | E102: =E50*D102 -> 53.24
A103: TOTAL | D103: =SUM(D100:D102) -> 0.0945 | E103: =SUM(E100:E102) -> 125.7795
A105: GRUPO "D"
A106: D | B106: GRUPO "D" | D106: % | E106: Valor (R$)
A107: A | B107: Incidência do grupo "A" sobre o grupo "B" | D107: 0.1038 | E107: =E50*D107 -> 138.1578
A108: TOTAL | D108: 0.1038 | E108: =SUM(E107) -> 138.1578
A110: QUADRO-RESUMO - Módulo 4 - Encargos Sociais e Trabalhistas
A111: 4 | B111: Módulo 4 - Encargos sociais e trabalhistas | D111: % | E111: Valor (R$)
A112: 4.1 | B112: GRUPO "A" | D112: 0.368 | E112: =E83 -> 329.36
A113: 4.2 | B113: GRUPO "B" | D113: 0.282 | E113: =E96 -> 375.342
A114: 4.3 | B114: GRUPO "C" | D114: 0.0945 | E114: =E103 -> 125.7795
A115: 4.4 | B115: GRUPO "D" | D115: 0.1038 | E115: =E108 -> 138.1578
A116: 4.6 | B116: Outros (especificar) | D116: - | E116: 0
A117: TOTAL | D117: 0.8483 | E117: =SUM(E112:E116) -> 968.6393
A119: MÓDULO 5: BENEFÍCIO E CUSTOS INDIRETOS (BDI)
A120: 5 | B120: Benefício e Custos Indiretos - BDI | D120: % | E120: Valor (R$)
A121: A | B121: Custo Indireto | D121: 0.06 | E121: =E137*D121 -> 168.626758
A122: D | B122: Tributos Federais (COFINS/PIS) | D122: 0.0365 | E122: =(E137+E121+E124)*3.65/91.35 -> 130.26194
A123: E | B123: Tributos Municipais (ISSQN ou ISS) | D123: 0.05 | E123: =(E137+E121+E124)*5/91.35 -> 178.4410138
A124: F | B124: Lucro | D124: 0.1 | E124: =E137*D124 -> 281.0445967
A125: TOTAL | D125: =SUM(D121:D124) -> 0.2465 | E125: =SUM(E121:E124) -> 758.3743085
A126: Notas: - Custos Indiretos, Tributos e Lucro por empregado.
A127: - O valor referente a tributos é obtido aplicando-se o percentual sobre o valor do faturamento.
A129: ANEXO III - B - PORTARIA Nº 07 DE 09/03/2011 - SLTI/MPOG
A130: Quadro Resumo do Custo por Empregado
A132: Mão de obra vinculada à execução contratual (valor por empregado) | E132: Valor (R$)
A133: A | B133: Módulo 1 – Composição da Remuneração | E133: =E50 -> 1331
A134: B | B134: Módulo 2 – Benefícios Mensais e Diários | E134: =E60 -> 402.14
A135: C | B135: Módulo 3 – Insumos Diversos (uniformes e outros) | E135: =E69 -> 108.6666667
A136: D | B136: Módulo 4 – Encargos Sociais e Trabalhistas | E136: =E117 -> 968.6393
A137: Subtotal (A + B + C + D) | E137: =SUM(E133:E136) -> 2810.445967
A138: E | B138: Módulo 5 – Benefício e Custos Indiretos | E138: =E125 -> 758.3743085
A139: VALOR MENSAL POR ASSISTENTE DE MANUTENÇÃO | E139: =SUM(E137:E138) -> 3568.820275

Sheet Insumos
A1: 5ª SUPERINTENDÊNCIA REGIONAL
A3: ANEXO IV DO TERMO DE REFERÊNCIA
A5: ANEXO VII-D DA INSTRUÇÃO NORMATIVA Nº 5/2017 - SEGES/MPDG
A6: QUADRO RESUMO - VALOR ANUAL DOS UNIFORMES E INSUMOS (EPI)
A8: Categoria Profissional | C8: Uniforme Completo - Subitem 5.9.1 do TR | D8: Óculos de segurança viseira transparente | E8: Luva Baixa Tensão + luva vaqueta | F8: Luva Latex | G8: Protetor auditivo tipo plug
A9: Quantidade Anual por Empregado | B9: Quantidade profissionais | C9: 02 Unidades | D9: 02 Unidades | E9: 01 Par | F9: 04 Pares | G9: 02 Pares
A10: Agente limpeza | B10: 2 | C10: =B10*600*2 -> 2400 | D10: =B10*12.5*2 -> 50 | E10: - | F10: =B10*17.5*4 -> 140 | G10: -
A11: Jardineiro | B11: 3 | C11: 3600 | D11: =B11*12.5*2 -> 75 | E11: - | F11: =B11*17.5*4 -> 210 | G11: =B11*4.5*2 -> 27
A12: Eletricista de Baixa e de Alta Tensão | B12: 1 | C12: 1200 | D12: =B12*12.5*2 -> 25 | E12: 530 | F12: - | G12: =B12*4.5*2 -> 9
A13: Assistente de Manutenção | B13: 1 | C13: 1200 | D13: =B13*12.5*2 -> 25 | E13: - | F13: =B13*17.5*4 -> 70 | G13: =B13*4.5*2 -> 9
A14: Copeira | B14: 1 | C14: 1200 | D14: - | E14: - | F14: =B14*17.5*4 -> 70 | G14: -
A15: Recepcionista | B15: 1 | C15: 1200 | D15: - | E15: - | F15: - | G15: -
A16: Totais | B16: =SUM(B10:B15) -> 9 | C16: =SUM(C10:C15) -> 10800 | D16: =SUM(D10:D15) -> 175 | E16: =SUM(E10:E15) -> 530 | F16: =SUM(F10:F15) -> 490 | G16: =SUM(G11:G15) -> 45

Sheet Valor Global
A1: 5ª SUPERINTEDÊNCIA REGIONAL
A3: ANEXO IV DO TERMO DE REFERÊNCIA
A5: ANEXO VII-D DA INSTRUÇÃO NORMATIVA Nº 5/2017 - SEGES/MPDG
A6: QUADRO DEMONSTRATIVO - VALOR GLOBAL DA PROPOSTA
A8: Valor global (Serviços de Limpeza, Sanitização, Conservação, Manutenção predial, de equipamentos e instalações elétricas, Copa, Jardinagem e Recepção).
A9: Item | B9: Descrição | C9: Und | D9: Quant. | E9: Preço Unit. Mensal | F9: Valor Total/Categoria (R$)
A10: 1 | B10: Categoria Profissional
A11: 1.1 | B11: Agente de Limpeza | C11: Unid | D11: 2 | E11: ='1.1 - Agente de Limpeza'!E139 -> 3205.353228 | F11: =D11*E11 -> 6410.706455
A12: 1.2 | B12: Copeira | C12: Unid | D12: 1 | E12: ='1.2 - Copeira'!E139 -> 3202.707725 | F12: 3202.707725
A13: 1.3 | B13: Jardineiro | C13: Unid | D13: 3 | E13: ='1.3 - Jardineiro'!E139 -> 3568.820275 | F13: 10706.46083
A14: 1.4 | B14: Recepcionista | C14: Unid | D14: 1 | E14: ='1.4 - Recepcionista'!E139 -> 3602.903873 | F14: 3602.903873
A15: 1.5 | B15: Eletricista de Alta e Baixa Tensão | C15: Unid. | D15: 1 | E15: ='1.5 - Eletricista'!E139 -> 5271.273492 | F15: 5271.273492
A16: 1.6 | B16: Assistente de Manutenção | C16: Unid. | D16: 1 | E16: ='1.6 - Assistente de Manutenção'!E139 -> 3568.820275 | F16: 3568.820275
A17: VALOR TOTAL MENSAL | F17: =SUM(F11:F16) -> 32762.87265
A18: VALOR TOTAL GLOBAL (12 MESES) | F18: =F17*12 -> 393154.4717
